[Event "Live Chess"]
[Site "Chess.com"]
[Date "2021.02.06"]
[Round "2"]
[White "Not_Draj"]
[Black "JazzFork"]
[Result "0-1"]
[CurrentPosition "8/8/5r2/7p/4K3/8/6k1/8 w - -"]
[Timezone "UTC"]
[ECO "B10"]
[ECOUrl "https://www.chess.com/openings/Caro-Kann-Defense-2.Nf3-d5"]
[UTCDate "2021.02.06"]
[UTCTime "19:01:37"]
[WhiteElo "1109"]
[BlackElo "1637"]
[TimeControl "1200+10"]
[Termination "JazzFork won by resignation"]
[StartTime "19:01:37"]
[EndDate "2021.02.06"]
[EndTime "19:20:05"]
[Link "https://www.chess.com/live/game/6472136563"]

1. e4 {[%clk 0:20:09.9]} 1... c6 {[%clk 0:20:05.1]} 2. Nf3 {[%clk 0:20:14.1]} 2... d5 {[%clk 0:20:12.6]} 3. exd5 {[%clk 0:20:19.8]} 3... cxd5 {[%clk 0:20:18.8]} 4. Nc3 {[%clk 0:20:25.4]} 4... Nc6 {[%clk 0:20:24.7]} 5. d4 {[%clk 0:20:28.9]} 5... Nf6 {[%clk 0:20:29.7]} 6. Bb5 {[%clk 0:20:33.2]} 6... e6 {[%clk 0:20:32.8]} 7. Ne5 {[%clk 0:20:36.8]} 7... Bd7 {[%clk 0:20:34]} 8. Bxc6 {[%clk 0:20:40.5]} 8... Bxc6 {[%clk 0:20:34.7]} 9. Bf4 {[%clk 0:20:39.4]} 9... Bb4 {[%clk 0:20:28.4]} 10. Nxc6 {[%clk 0:20:39.5]} 10... bxc6 {[%clk 0:20:33.3]} 11. a3 {[%clk 0:20:41.6]} 11... Bxc3+ {[%clk 0:20:39.8]} 12. bxc3 {[%clk 0:20:48.1]} 12... O-O {[%clk 0:20:49.2]} 13. O-O {[%clk 0:20:43.7]} 13... h6 {[%clk 0:20:54.3]} 14. Be5 {[%clk 0:20:34.8]} 14... Nd7 {[%clk 0:20:55.8]} 15. Bf4 {[%clk 0:20:37.9]} 15... Nb6 {[%clk 0:20:55.6]} 16. Qg4 {[%clk 0:20:39.8]} 16... Qf6 {[%clk 0:20:52.8]} 17. Be5 {[%clk 0:20:35.9]} 17... Qg6 {[%clk 0:20:56.9]} 18. Qxg6 {[%clk 0:20:24]} 18... fxg6 {[%clk 0:21:04.1]} 19. Bd6 {[%clk 0:20:13.7]} 19... Rfd8 {[%clk 0:21:02.5]} 20. Bc7 {[%clk 0:20:19.4]} 20... Rdc8 {[%clk 0:21:05.5]} 21. Bxb6 {[%clk 0:20:23.4]} 21... axb6 {[%clk 0:21:13.9]} 22. Rfb1 {[%clk 0:20:25.1]} 22... b5 {[%clk 0:21:18.4]} 23. Re1 {[%clk 0:20:30]} 23... Kf7 {[%clk 0:21:21.5]} 24. h3 {[%clk 0:20:31.6]} 24... Ra4 {[%clk 0:21:25.5]} 25. Reb1 {[%clk 0:20:27.5]} 25... Rca8 {[%clk 0:21:27.4]} 26. Rb3 {[%clk 0:20:29.6]} 26... Kf6 {[%clk 0:21:31.9]} 27. g4 {[%clk 0:20:25.2]} 27... Kg5 {[%clk 0:21:35.9]} 28. Re1 {[%clk 0:20:23.4]} 28... Rxa3 {[%clk 0:21:33.8]} 29. Rxa3 {[%clk 0:20:29.8]} 29... Rxa3 {[%clk 0:21:40.9]} 30. Rxe6 {[%clk 0:20:31.5]} 30... Rxc3 {[%clk 0:21:48.2]} 31. f4+ {[%clk 0:20:18.6]} 31... Kxf4 {[%clk 0:21:43.4]} 32. Rxg6 {[%clk 0:20:24.7]} 32... Rxh3 {[%clk 0:21:43.2]} 33. Rxc6 {[%clk 0:20:18]} 33... Rg3+ {[%clk 0:21:36.7]} 34. Kf2 {[%clk 0:20:19.3]} 34... Rxg4 {[%clk 0:21:22.1]} 35. Rb6 {[%clk 0:20:16.8]} 35... Ke4 {[%clk 0:21:17.7]} 36. Rxb5 {[%clk 0:20:17.2]} 36... Rf4+ {[%clk 0:20:52.2]} 37. Ke2 {[%clk 0:20:22.4]} 37... Kxd4 {[%clk 0:20:48.4]} 38. Rb4+ {[%clk 0:20:27.5]} 38... Ke5 {[%clk 0:20:56.5]} 39. Rb6 {[%clk 0:20:30.1]} 39... Rf6 {[%clk 0:20:50.4]} 40. Rb3 {[%clk 0:20:35.2]} 40... d4 {[%clk 0:20:11.8]} 41. Rg3 {[%clk 0:20:42.4]} 41... g5 {[%clk 0:20:12.5]} 42. Kd3 {[%clk 0:20:39.4]} 42... Rf5 {[%clk 0:19:44.6]} 43. Rh3 {[%clk 0:20:45.2]} 43... Rf6 {[%clk 0:19:15.6]} 44. c3 {[%clk 0:20:50.6]} 44... dxc3 {[%clk 0:18:58.9]} 45. Kxc3 {[%clk 0:20:58]} 45... g4 {[%clk 0:19:02.1]} 46. Re3+ {[%clk 0:21:01.7]} 46... Kf4 {[%clk 0:18:51.7]} 47. Re1 {[%clk 0:21:09.5]} 47... Kg3 {[%clk 0:18:51.3]} 48. Rg1+ {[%clk 0:21:15]} 48... Kh3 {[%clk 0:18:41.7]} 49. Re1 {[%clk 0:21:12.5]} 49... g3 {[%clk 0:18:41.5]} 50. Rh1+ {[%clk 0:21:07.4]} 50... Kg2 {[%clk 0:18:43.7]} 51. Rh4 {[%clk 0:21:13.4]} 51... Kf2 {[%clk 0:18:30.7]} 52. Kd3 {[%clk 0:21:16.9]} 52... g2 {[%clk 0:18:23.7]} 53. Rh2 {[%clk 0:21:22.4]} 53... Kg1 {[%clk 0:18:30.2]} 54. Rxg2+ {[%clk 0:21:26.2]} 54... Kxg2 {[%clk 0:18:38.8]} 55. Ke4 {[%clk 0:21:36.1]} 55... h5 {[%clk 0:18:45.3]} 0-1

[Event "Live Chess"]
[Site "Chess.com"]
[Date "2021.02.06"]
[Round "2"]
[White "Falcondragoon"]
[Black "BetaJiChill"]
[Result "0-1"]
[CurrentPosition "6k1/1p4pp/1p2p3/5p2/7P/4BK2/r6b/6R1 w - -"]
[Timezone "UTC"]
[ECO "B21"]
[ECOUrl "https://www.chess.com/openings/Sicilian-Defense-Smith-Morra-Accepted-Pin-Defense"]
[UTCDate "2021.02.06"]
[UTCTime "19:01:49"]
[WhiteElo "1360"]
[BlackElo "1266"]
[TimeControl "1200+10"]
[Termination "BetaJiChill won by resignation"]
[StartTime "19:01:49"]
[EndDate "2021.02.06"]
[EndTime "19:23:21"]
[Link "https://www.chess.com/live/game/6472137196"]

1. e4 {[%clk 0:20:06.5]} 1... c5 {[%clk 0:20:07.9]} 2. d4 {[%clk 0:20:13.2]} 2... cxd4 {[%clk 0:20:12.8]} 3. c3 {[%clk 0:20:19]} 3... dxc3 {[%clk 0:20:14.7]} 4. Nxc3 {[%clk 0:20:27.3]} 4... Nc6 {[%clk 0:20:14.7]} 5. Nf3 {[%clk 0:20:35.1]} 5... e6 {[%clk 0:20:14.2]} 6. Bc4 {[%clk 0:20:42.3]} 6... Bb4 {[%clk 0:20:00.7]} 7. Bd2 {[%clk 0:20:42.2]} 7... Nf6 {[%clk 0:19:59.4]} 8. e5 {[%clk 0:20:42.2]} 8... Ng4 {[%clk 0:19:58.4]} 9. Qe2 {[%clk 0:20:39.9]} 9... d6 {[%clk 0:19:09.6]} 10. exd6 {[%clk 0:20:30]} 10... Bxd6 {[%clk 0:18:35.6]} 11. h3 {[%clk 0:20:31.8]} 11... Nge5 {[%clk 0:18:26.1]} 12. Nxe5 {[%clk 0:20:07.6]} 12... Bxe5 {[%clk 0:18:21.5]} 13. O-O-O {[%clk 0:19:56.6]} 13... Qc7 {[%clk 0:17:59.7]} 14. Rhe1 {[%clk 0:19:36.4]} 14... O-O {[%clk 0:17:55.2]} 15. Bb5 {[%clk 0:19:32.2]} 15... Bf6 {[%clk 0:17:29.3]} 16. g3 {[%clk 0:19:06.9]} 16... Nd4 {[%clk 0:17:31.2]} 17. Qd3 {[%clk 0:18:52.3]} 17... Nxb5 {[%clk 0:17:23.1]} 18. Qxb5 {[%clk 0:18:53.5]} 18... Bd7 {[%clk 0:17:24.3]} 19. Qe2 {[%clk 0:18:57]} 19... Ba4 {[%clk 0:16:59.4]} 20. b3 {[%clk 0:18:27.5]} 20... Bxc3 {[%clk 0:17:02.2]} 21. bxa4 {[%clk 0:18:22.9]} 21... Bd4+ {[%clk 0:16:31.6]} 22. Kb1 {[%clk 0:18:19.6]} 22... Qb6+ {[%clk 0:16:35.8]} 23. Qb5 {[%clk 0:18:09.8]} 23... Bxf2 {[%clk 0:16:16]} 24. Qxb6 {[%clk 0:18:04]} 24... axb6 {[%clk 0:16:15.8]} 25. Re4 {[%clk 0:18:02.1]} 25... Bxg3 {[%clk 0:16:16.5]} 26. Rg4 {[%clk 0:18:08.4]} 26... Bc7 {[%clk 0:15:06.6]} 27. Bh6 {[%clk 0:18:12.3]} 27... Be5 {[%clk 0:15:04.5]} 28. Rdg1 {[%clk 0:18:17.7]} 28... f5 {[%clk 0:14:51.6]} 29. Rg5 {[%clk 0:17:59.7]} 29... Rf7 {[%clk 0:14:40.6]} 30. R5g2 {[%clk 0:17:31.2]} 30... Rxa4 {[%clk 0:14:39.9]} 31. Be3 {[%clk 0:17:13.8]} 31... Rb4+ {[%clk 0:14:35.2]} 32. Kc1 {[%clk 0:17:17.6]} 32... Rc7+ {[%clk 0:14:41.4]} 33. Kd1 {[%clk 0:17:18.3]} 33... Rb1+ {[%clk 0:14:48.3]} 34. Ke2 {[%clk 0:17:27.4]} 34... Rc2+ {[%clk 0:14:43.2]} 35. Kf3 {[%clk 0:17:28.4]} 35... Rxg1 {[%clk 0:14:34.9]} 36. Rxg1 {[%clk 0:17:32.6]} 36... Rxa2 {[%clk 0:14:22.9]} 37. h4 {[%clk 0:17:32.1]} 37... Ra3 {[%clk 0:14:22.4]} 38. Kf2 {[%clk 0:17:38.4]} 38... Ra2+ {[%clk 0:14:15.2]} 39. Kf3 {[%clk 0:17:46.5]} 39... Bh2 {[%clk 0:14:18.6]} 0-1

[Event "Live Chess"]
[Site "Chess.com"]
[Date "2021.02.06"]
[Round "2"]
[White "abhijoym2"]
[Black "kingcon3"]
[Result "1-0"]
[CurrentPosition "k1R5/1p5p/p5p1/1N6/5B2/5NKP/P5P1/8 b - -"]
[Timezone "UTC"]
[ECO "C44"]
[ECOUrl "https://www.chess.com/openings/Scotch-Game"]
[UTCDate "2021.02.06"]
[UTCTime "19:01:54"]
[WhiteElo "1749"]
[BlackElo "1063"]
[TimeControl "1200+10"]
[Termination "abhijoym2 won by checkmate"]
[StartTime "19:01:54"]
[EndDate "2021.02.06"]
[EndTime "19:08:49"]
[Link "https://www.chess.com/live/game/6472137751"]

1. e4 {[%clk 0:20:09.1]} 1... e5 {[%clk 0:20:08.3]} 2. Nf3 {[%clk 0:20:17.5]} 2... Nc6 {[%clk 0:20:15.4]} 3. d4 {[%clk 0:20:25.7]} 3... f6 {[%clk 0:20:22.3]} 4. Bc4 {[%clk 0:20:03.3]} 4... exd4 {[%clk 0:20:26.7]} 5. c3 {[%clk 0:19:59.9]} 5... dxc3 {[%clk 0:20:34]} 6. Nxc3 {[%clk 0:20:07.7]} 6... Bc5 {[%clk 0:20:42.1]} 7. Bxg8 {[%clk 0:19:57.6]} 7... Rxg8 {[%clk 0:20:48.4]} 8. Qd5 {[%clk 0:20:04.4]} 8... Bxf2+ {[%clk 0:20:35]} 9. Kxf2 {[%clk 0:20:11.9]} 9... Rh8 {[%clk 0:20:41.1]} 10. Re1 {[%clk 0:20:09.1]} 10... Ne7 {[%clk 0:20:44.8]} 11. Qh5+ {[%clk 0:19:39.9]} 11... g6 {[%clk 0:20:52.3]} 12. Qh4 {[%clk 0:19:46.9]} 12... d6 {[%clk 0:20:53.8]} 13. Qxf6 {[%clk 0:19:51]} 13... Bg4 {[%clk 0:20:56.3]} 14. Qxh8+ {[%clk 0:19:57.4]} 14... Kd7 {[%clk 0:21:03.2]} 15. Qxd8+ {[%clk 0:19:57.3]} 15... Rxd8 {[%clk 0:21:11.5]} 16. e5 {[%clk 0:20:01.8]} 16... Kc8 {[%clk 0:21:12.6]} 17. exd6 {[%clk 0:20:08.8]} 17... Rxd6 {[%clk 0:21:20.9]} 18. Rxe7 {[%clk 0:20:17.1]} 18... Kb8 {[%clk 0:21:27.6]} 19. Nb5 {[%clk 0:20:21.4]} 19... Rc6 {[%clk 0:21:29.4]} 20. h3 {[%clk 0:20:24.4]} 20... Rc2+ {[%clk 0:21:28.5]} 21. Kg3 {[%clk 0:20:27.1]} 21... Bc8 {[%clk 0:21:35.4]} 22. Bf4 {[%clk 0:20:25.9]} 22... Rxb2 {[%clk 0:21:25.9]} 23. Nxc7 {[%clk 0:20:29.1]} 23... Rc2 {[%clk 0:21:24.2]} 24. Nb5+ {[%clk 0:20:28.5]} 24... Ka8 {[%clk 0:21:28.4]} 25. Rc1 {[%clk 0:20:36.8]} 25... Rxc1 {[%clk 0:21:27.5]} 26. Bxc1 {[%clk 0:20:44.1]} 26... a6 {[%clk 0:21:29.1]} 27. Re8 {[%clk 0:20:50.8]} 27... Kb8 {[%clk 0:21:33.9]} 28. Bf4+ {[%clk 0:20:59.1]} 28... Ka8 {[%clk 0:21:41.7]} 29. Rxc8# {[%clk 0:21:08.2]} 1-0

[Event "Live Chess"]
[Site "Chess.com"]
[Date "2021.02.06"]
[Round "2"]
[White "siverlem"]
[Black "VAP_1D"]
[Result "0-1"]
[CurrentPosition "6k1/2p3pp/5p2/3q1K2/3r4/r7/5PPP/8 w - -"]
[Timezone "UTC"]
[ECO "C55"]
[ECOUrl "https://www.chess.com/openings/Italian-Game-Two-Knights-Defense"]
[UTCDate "2021.02.06"]
[UTCTime "19:02:28"]
[WhiteElo "888"]
[BlackElo "1397"]
[TimeControl "1200+10"]
[Termination "VAP_1D won by checkmate"]
[StartTime "19:02:28"]
[EndDate "2021.02.06"]
[EndTime "19:12:59"]
[Link "https://www.chess.com/live/game/6472144338"]

1. e4 {[%clk 0:20:07.9]} 1... e5 {[%clk 0:20:09.2]} 2. Nf3 {[%clk 0:20:16.4]} 2... Nf6 {[%clk 0:20:18.1]} 3. Bc4 {[%clk 0:20:21.9]} 3... Nc6 {[%clk 0:20:26.4]} 4. Nc3 {[%clk 0:20:26.2]} 4... Nxe4 {[%clk 0:20:34.7]} 5. Nxe4 {[%clk 0:20:34.7]} 5... d5 {[%clk 0:20:43.7]} 6. Bb5 {[%clk 0:20:38.4]} 6... dxe4 {[%clk 0:20:51.7]} 7. Bxc6+ {[%clk 0:20:46.8]} 7... bxc6 {[%clk 0:20:59.6]} 8. Nxe5 {[%clk 0:20:53.5]} 8... Qd6 {[%clk 0:21:02.9]} 9. Nc4 {[%clk 0:20:57.9]} 9... Qc5 {[%clk 0:21:04.5]} 10. d3 {[%clk 0:21:00.9]} 10... exd3 {[%clk 0:21:11.6]} 11. cxd3 {[%clk 0:21:10.8]} 11... Be6 {[%clk 0:21:06.1]} 12. b3 {[%clk 0:21:15]} 12... Bxc4 {[%clk 0:21:12.7]} 13. dxc4 {[%clk 0:21:21.4]} 13... Be7 {[%clk 0:21:17.9]} 14. Qf3 {[%clk 0:21:24.8]} 14... O-O {[%clk 0:21:22.2]} 15. Qf4 {[%clk 0:21:09.9]} 15... Bd6 {[%clk 0:21:22.9]} 16. Qf3 {[%clk 0:21:02.1]} 16... Rfe8+ {[%clk 0:21:30]} 17. Be3 {[%clk 0:21:07.5]} 17... Qb4+ {[%clk 0:21:37.2]} 18. Kf1 {[%clk 0:21:02.1]} 18... Qc3 {[%clk 0:21:34.2]} 19. Re1 {[%clk 0:20:42]} 19... Bb4 {[%clk 0:21:32.1]} 20. Qe2 {[%clk 0:20:23.7]} 20... Qxe1+ {[%clk 0:21:29.9]} 21. Qxe1 {[%clk 0:20:30.9]} 21... Bxe1 {[%clk 0:21:39.8]} 22. Kxe1 {[%clk 0:20:39.4]} 22... a5 {[%clk 0:21:46.7]} 23. Ke2 {[%clk 0:20:42.3]} 23... a4 {[%clk 0:21:55.4]} 24. b4 {[%clk 0:20:46.4]} 24... Rab8 {[%clk 0:22:01.8]} 25. a3 {[%clk 0:20:53.5]} 25... c5 {[%clk 0:22:10.2]} 26. Kd2 {[%clk 0:20:58.1]} 26... cxb4 {[%clk 0:22:18.6]} 27. axb4 {[%clk 0:21:05.5]} 27... Rxb4 {[%clk 0:22:28.5]} 28. c5 {[%clk 0:21:06.8]} 28... Rd8+ {[%clk 0:22:32.6]} 29. Kc3 {[%clk 0:21:14.2]} 29... Rb3+ {[%clk 0:22:39.9]} 30. Kc2 {[%clk 0:21:20.4]} 30... Rb4 {[%clk 0:22:35.8]} 31. Kc3 {[%clk 0:21:07.2]} 31... Rbb8 {[%clk 0:22:39.7]} 32. Ra1 {[%clk 0:20:52.5]} 32... Ra8 {[%clk 0:22:44.6]} 33. Kb4 {[%clk 0:20:48.7]} 33... Rdb8+ {[%clk 0:22:51.5]} 34. Kc3 {[%clk 0:20:56.4]} 34... a3 {[%clk 0:22:56.6]} 35. Kc4 {[%clk 0:20:50.6]} 35... a2 {[%clk 0:23:04.6]} 36. Bd4 {[%clk 0:20:57.6]} 36... Rb1 {[%clk 0:23:09.5]} 37. Kc3 {[%clk 0:20:39.2]} 37... Rxa1 {[%clk 0:23:13.1]} 38. Kb3 {[%clk 0:20:45.4]} 38... Rb1+ {[%clk 0:23:20]} 39. Kc3 {[%clk 0:20:53.1]} 39... a1=Q+ {[%clk 0:23:28.9]} 40. Kd3 {[%clk 0:21:01.8]} 40... Ra3+ {[%clk 0:23:37.9]} 41. Kc4 {[%clk 0:21:10.7]} 41... Rc1+ {[%clk 0:23:46.2]} 42. Kd5 {[%clk 0:21:19.8]} 42... Qb1 {[%clk 0:23:45.2]} 43. c6 {[%clk 0:21:22]} 43... Qb5+ {[%clk 0:23:50.7]} 44. Ke4 {[%clk 0:21:23.9]} 44... Qxc6+ {[%clk 0:23:56]} 45. Kf4 {[%clk 0:21:26.7]} 45... Rc4 {[%clk 0:24:00.1]} 46. Ke5 {[%clk 0:21:15.6]} 46... f6+ {[%clk 0:24:07.9]} 47. Kf4 {[%clk 0:21:22]} 47... Rxd4+ {[%clk 0:24:17.1]} 48. Kf5 {[%clk 0:21:27.9]} 48... Qd5# {[%clk 0:24:25.8]} 0-1

[Event "Live Chess"]
[Site "Chess.com"]
[Date "2021.02.06"]
[Round "2"]
[White "Yashas06"]
[Black "SelfishClothes"]
[Result "0-1"]
[CurrentPosition "6k1/5p2/6pp/1p6/1PP5/P5P1/B3r1q1/6K1 w - -"]
[Timezone "UTC"]
[ECO "C50"]
[ECOUrl "https://www.chess.com/openings/Giuoco-Piano-Game-Giuoco-Pianissimo-Variation-4...Nf6"]
[UTCDate "2021.02.06"]
[UTCTime "19:02:10"]
[WhiteElo "1112"]
[BlackElo "1134"]
[TimeControl "1200+10"]
[Termination "SelfishClothes won by checkmate"]
[StartTime "19:02:10"]
[EndDate "2021.02.06"]
[EndTime "19:28:53"]
[Link "https://www.chess.com/live/game/6472141076"]

1. e4 {[%clk 0:20:09.6]} 1... e5 {[%clk 0:20:08.2]} 2. Nf3 {[%clk 0:20:17.6]} 2... Nc6 {[%clk 0:20:16.1]} 3. Bc4 {[%clk 0:20:25.6]} 3... Nf6 {[%clk 0:20:17.6]} 4. d3 {[%clk 0:20:27.7]} 4... Bc5 {[%clk 0:20:17.1]} 5. Bg5 {[%clk 0:20:31.6]} 5... O-O {[%clk 0:20:19.8]} 6. Nc3 {[%clk 0:20:38.8]} 6... h6 {[%clk 0:20:28.4]} 7. Bxf6 {[%clk 0:20:40.7]} 7... Qxf6 {[%clk 0:20:36.3]} 8. Nd5 {[%clk 0:20:42.9]} 8... Qd8 {[%clk 0:20:44]} 9. O-O {[%clk 0:20:14.5]} 9... d6 {[%clk 0:20:50.6]} 10. a3 {[%clk 0:19:56.8]} 10... Bg4 {[%clk 0:20:53.2]} 11. h3 {[%clk 0:19:55.4]} 11... Bxf3 {[%clk 0:21:00.9]} 12. Qxf3 {[%clk 0:20:03.9]} 12... Nd4 {[%clk 0:21:06.2]} 13. Qd1 {[%clk 0:19:42]} 13... c6 {[%clk 0:21:09.3]} 14. Ne3 {[%clk 0:19:32.7]} 14... b5 {[%clk 0:21:08]} 15. Ba2 {[%clk 0:19:20.4]} 15... Ne6 {[%clk 0:21:02.8]} 16. b4 {[%clk 0:19:24]} 16... Bxe3 {[%clk 0:21:10.1]} 17. fxe3 {[%clk 0:19:31.3]} 17... d5 {[%clk 0:21:11.6]} 18. exd5 {[%clk 0:19:29.4]} 18... cxd5 {[%clk 0:21:18.6]} 19. Qf3 {[%clk 0:19:16.6]} 19... e4 {[%clk 0:21:06.2]} 20. dxe4 {[%clk 0:19:09.1]} 20... dxe4 {[%clk 0:21:08.8]} 21. Qxe4 {[%clk 0:19:14.8]} 21... Ng5 {[%clk 0:21:07.4]} 22. Qf5 {[%clk 0:18:43.4]} 22... Re8 {[%clk 0:20:53.5]} 23. Rad1 {[%clk 0:18:08.8]} 23... Qb6 {[%clk 0:20:45.4]} 24. Rde1 {[%clk 0:17:05.6]} 24... Rxe3 {[%clk 0:20:11.2]} 25. Rxe3 {[%clk 0:16:21.4]} 25... Qxe3+ {[%clk 0:20:16.4]} 26. Kh1 {[%clk 0:15:35.9]} 26... Rf8 {[%clk 0:19:58.6]} 27. h4 {[%clk 0:15:08.6]} 27... g6 {[%clk 0:19:34.4]} 28. Qd7 {[%clk 0:14:31.1]} 28... Ne6 {[%clk 0:18:24.9]} 29. Rf6 {[%clk 0:11:33.1]} 29... Qe1+ {[%clk 0:18:15.8]} 30. Kh2 {[%clk 0:11:29.6]} 30... Qxh4+ {[%clk 0:18:21.8]} 31. Kg1 {[%clk 0:10:54.8]} 31... Qxf6 {[%clk 0:18:25]} 32. Qxa7 {[%clk 0:10:48.2]} 32... Nf4 {[%clk 0:18:19.3]} 33. Qf2 {[%clk 0:10:15.2]} 33... Qa1+ {[%clk 0:17:34.5]} 34. Kh2 {[%clk 0:09:34.1]} 34... Qe5 {[%clk 0:17:15.2]} 35. g3 {[%clk 0:09:25.9]} 35... Qh5+ {[%clk 0:17:13.2]} 36. Kg1 {[%clk 0:09:14.8]} 36... Nh3+ {[%clk 0:17:21]} 37. Kg2 {[%clk 0:09:18.9]} 37... Nxf2 {[%clk 0:17:28.5]} 38. Kxf2 {[%clk 0:09:28.8]} 38... Re8 {[%clk 0:17:31.4]} 39. c4 {[%clk 0:09:27.8]} 39... Re2+ {[%clk 0:17:37.3]} 40. Kf1 {[%clk 0:09:27.1]} 40... Qf3+ {[%clk 0:17:43.8]} 41. Kg1 {[%clk 0:09:25.4]} 41... Qg2# {[%clk 0:17:52.7]} 0-1

[Event "Live Chess"]
[Site "Chess.com"]
[Date "2021.02.06"]
[Round "2"]
[White "MrinalA"]
[Black "Evan8435"]
[Result "0-1"]
[CurrentPosition "4r1k1/ppp2pp1/7p/8/3P3P/2P1r1q1/P1P2K2/4RQ2 w - -"]
[Timezone "UTC"]
[ECO "C25"]
[ECOUrl "https://www.chess.com/openings/Vienna-Game-Max-Lange-Defense-3.Bc4-Bc5"]
[UTCDate "2021.02.06"]
[UTCTime "19:02:20"]
[WhiteElo "954"]
[BlackElo "1198"]
[TimeControl "1200+10"]
[Termination "Evan8435 won by checkmate"]
[StartTime "19:02:20"]
[EndDate "2021.02.06"]
[EndTime "19:11:34"]
[Link "https://www.chess.com/live/game/6472141704"]

1. e4 {[%clk 0:20:08.7]} 1... e5 {[%clk 0:20:08.4]} 2. Nc3 {[%clk 0:20:16.7]} 2... Nc6 {[%clk 0:20:15.6]} 3. Bc4 {[%clk 0:20:22]} 3... Bc5 {[%clk 0:20:22.6]} 4. d3 {[%clk 0:20:23.8]} 4... Nf6 {[%clk 0:20:30.9]} 5. f4 {[%clk 0:20:26.9]} 5... exf4 {[%clk 0:20:37.4]} 6. Bxf4 {[%clk 0:20:31.4]} 6... d6 {[%clk 0:20:44.1]} 7. h3 {[%clk 0:20:35.2]} 7... h6 {[%clk 0:20:51.3]} 8. Bg3 {[%clk 0:20:27.6]} 8... O-O {[%clk 0:20:54.2]} 9. Nf3 {[%clk 0:20:34.2]} 9... Re8 {[%clk 0:21:00]} 10. d4 {[%clk 0:20:31.8]} 10... Bb4 {[%clk 0:21:04.6]} 11. e5 {[%clk 0:20:32.2]} 11... Bxc3+ {[%clk 0:21:09.8]} 12. bxc3 {[%clk 0:20:40.8]} 12... Bf5 {[%clk 0:21:06.1]} 13. O-O {[%clk 0:20:38.7]} 13... Ne4 {[%clk 0:21:10.1]} 14. Be1 {[%clk 0:20:33.8]} 14... dxe5 {[%clk 0:21:04.2]} 15. Nxe5 {[%clk 0:20:26.3]} 15... Nxe5 {[%clk 0:21:07.4]} 16. Rxf5 {[%clk 0:20:27.4]} 16... Nxc4 {[%clk 0:20:58.9]} 17. Rf3 {[%clk 0:19:51.5]} 17... Ng5 {[%clk 0:20:53.6]} 18. Rf1 {[%clk 0:19:40.2]} 18... Ne3 {[%clk 0:20:55.7]} 19. Qe2 {[%clk 0:19:24.4]} 19... Nxf1 {[%clk 0:20:59.6]} 20. Qxf1 {[%clk 0:19:32.7]} 20... Qd6 {[%clk 0:21:01.9]} 21. g3 {[%clk 0:19:34.2]} 21... Re3 {[%clk 0:21:01.1]} 22. h4 {[%clk 0:19:16]} 22... Nf3+ {[%clk 0:21:00.1]} 23. Kf2 {[%clk 0:19:04.5]} 23... Rae8 {[%clk 0:21:00.6]} 24. Rd1 {[%clk 0:18:05.8]} 24... Nxe1 {[%clk 0:21:01.4]} 25. Rxe1 {[%clk 0:18:11.7]} 25... Qxg3# {[%clk 0:21:07.4]} 0-1

[Event "Live Chess"]
[Site "Chess.com"]
[Date "2021.02.06"]
[Round "2"]
[White "Ankur5206"]
[Black "sb1789"]
[Result "1-0"]
[CurrentPosition "4B3/p7/1b5k/2p5/3P4/2P5/PP1K3R/6R1 b - -"]
[Timezone "UTC"]
[ECO "A45"]
[ECOUrl "https://www.chess.com/openings/Indian-Game"]
[UTCDate "2021.02.06"]
[UTCTime "19:02:19"]
[WhiteElo "993"]
[BlackElo "1067"]
[TimeControl "1200+10"]
[Termination "Ankur5206 won by checkmate"]
[StartTime "19:02:19"]
[EndDate "2021.02.06"]
[EndTime "19:14:05"]
[Link "https://www.chess.com/live/game/6472142255"]

1. d4 {[%clk 0:19:59.4]} 1... Nf6 {[%clk 0:20:00.7]} 2. Bf4 {[%clk 0:20:04.6]} 2... d5 {[%clk 0:20:00]} 3. Nf3 {[%clk 0:20:12.3]} 3... Bf5 {[%clk 0:20:04.5]} 4. e3 {[%clk 0:20:17.5]} 4... e6 {[%clk 0:20:09.5]} 5. Nbd2 {[%clk 0:20:20.2]} 5... Bb4 {[%clk 0:20:08.1]} 6. h3 {[%clk 0:20:22.4]} 6... Ne4 {[%clk 0:20:12.9]} 7. g4 {[%clk 0:19:57.9]} 7... Bg6 {[%clk 0:20:12]} 8. Bd3 {[%clk 0:20:03.4]} 8... h5 {[%clk 0:20:09.9]} 9. gxh5 {[%clk 0:20:02]} 9... Bxh5 {[%clk 0:20:17.1]} 10. c3 {[%clk 0:20:09.9]} 10... Nxd2 {[%clk 0:19:49.1]} 11. Kxd2 {[%clk 0:20:11.2]} 11... Ba5 {[%clk 0:19:49.8]} 12. Qa4+ {[%clk 0:20:13.1]} 12... Nc6 {[%clk 0:19:55.9]} 13. Ne5 {[%clk 0:20:13.3]} 13... Bb6 {[%clk 0:19:42.6]} 14. Nxc6 {[%clk 0:20:08.9]} 14... bxc6 {[%clk 0:19:48.5]} 15. Qxc6+ {[%clk 0:20:14.4]} 15... Kf8 {[%clk 0:19:51.6]} 16. Rhg1 {[%clk 0:20:05]} 16... Bf3 {[%clk 0:19:44.6]} 17. Be5 {[%clk 0:20:02.1]} 17... f6 {[%clk 0:19:47.8]} 18. Bf4 {[%clk 0:20:04.5]} 18... Rxh3 {[%clk 0:19:48.9]} 19. Qxe6 {[%clk 0:19:50.8]} 19... Qc8 {[%clk 0:19:22.8]} 20. Qxc8+ {[%clk 0:19:46.6]} 20... Rxc8 {[%clk 0:19:29.2]} 21. Bf5 {[%clk 0:19:56.1]} 21... Bg4 {[%clk 0:19:22.1]} 22. Bxg4 {[%clk 0:20:01.5]} 22... Rh8 {[%clk 0:19:23.7]} 23. Bxc8 {[%clk 0:20:08.7]} 23... Ke7 {[%clk 0:19:31.2]} 24. Bf5 {[%clk 0:19:52.8]} 24... Kf7 {[%clk 0:19:29.9]} 25. Bg6+ {[%clk 0:19:50.8]} 25... Ke6 {[%clk 0:19:34.6]} 26. f3 {[%clk 0:19:51.7]} 26... f5 {[%clk 0:19:37.1]} 27. Rae1 {[%clk 0:19:54]} 27... Kf6 {[%clk 0:19:43.7]} 28. e4 {[%clk 0:19:53.1]} 28... fxe4 {[%clk 0:19:48.7]} 29. fxe4 {[%clk 0:20:01.4]} 29... dxe4 {[%clk 0:19:56.4]} 30. Bxe4 {[%clk 0:20:01.6]} 30... Rh4 {[%clk 0:19:59.4]} 31. Be5+ {[%clk 0:20:00.8]} 31... Kf7 {[%clk 0:19:56.3]} 32. Bxg7 {[%clk 0:20:03.8]} 32... Rh2+ {[%clk 0:20:01.8]} 33. Re2 {[%clk 0:20:08.6]} 33... Rh5 {[%clk 0:19:55.7]} 34. Bg6+ {[%clk 0:20:10.9]} 34... Kxg7 {[%clk 0:20:03.2]} 35. Bxh5+ {[%clk 0:20:20.4]} 35... Kh6 {[%clk 0:20:11.5]} 36. Be8 {[%clk 0:20:25.8]} 36... c5 {[%clk 0:20:08.8]} 37. Rh2# {[%clk 0:20:34]} 1-0